fUSD/lending_fUSD_20241106
["ID","MTS","AMOUNT","RATE_DAILY","PERIOD"]
[341502519,1730932240841,-319.033336,0.00034818,7]
[341502520,1730932240851,-319.033336,0.00034818,7]
[341502521,1730932240861,-319.033336,0.00034818,7]
[341502522,1730932240871,-319.033336,0.00034818,7]
[341502523,1730932240880,-319.033336,0.00034818,7]
[341502524,1730932240889,-319.033336,0.00034818,7]
[341502525,1730932240898,-151.0,0.00034818,7]
[341502526,1730932240907,-151.0,0.00034818,7]
[341502527,1730932240916,-151.0,0.00034818,7]
[341502528,1730932240925,-151.0,0.00034818,7]
[341502529,1730932240935,-151.0,0.00034818,7]
[341502530,1730932240944,-151.0,0.00034818,7]
[341502531,1730932240954,-348.606272,0.00034818,7]
[341502532,1730932240963,-348.606272,0.00034818,7]
[341502533,1730932240972,-348.606272,0.00034818,7]
[341502534,1730932240984,-348.606272,0.00034818,7]
[341502535,1730932240993,-151.0,0.00034818,7]
[341502536,1730932241002,-151.0,0.00034818,7]
[341502537,1730932241012,-151.0,0.00034818,7]
[341502538,1730932241021,-151.0,0.00034818,7]
[341502539,1730932241030,-151.0,0.00034818,7]
[341502540,1730932241039,-192.40055,0.00034818,7]
[341502541,1730932241048,-585.196316,0.00034818,7]
[341502542,1730932241058,-585.196316,0.00034818,7]
[341502543,1730932241067,-585.196316,0.00034818,7]
[341502544,1730932241076,-585.196316,0.00034818,7]
[341502545,1730932241085,-585.196316,0.00034818,7]
[341502546,1730932241094,-585.196316,0.00034818,7]
[341502547,1730932241103,-150.0,0.00034825,2]
[341502548,1730932241112,-150.0,0.00034825,2]
[341502549,1730932241121,-150.0,0.00034826,2]
[341502550,1730932241131,-151.0,0.00034828,7]
[341502551,1730932241141,-151.0,0.00034828,7]
[341502552,1730932241150,-151.0,0.00034828,7]
[341502553,1730932241159,-151.0,0.00034828,7]
[341502554,1730932241169,-151.0,0.00034828,7]
[341502555,1730932241178,-151.0,0.00034828,7]
[341502556,1730932241187,-611.299316,0.00034828,7]
[341502557,1730932241196,-151.0,0.00034828,7]
[341502558,1730932241205,-611.299316,0.00034828,7]
[341502559,1730932241214,-151.0,0.00034828,7]
[341502560,1730932241224,-151.0,0.00034828,7]
[341502561,1730932241235,-151.0,0.00034828,7]
[341502562,1730932241245,-151.0,0.00034828,7]
[341502563,1730932241254,-151.0,0.00034828,7]
[341502564,1730932241263,-151.0,0.00034828,7]
[341502565,1730932241272,-276.197436,0.00034828,7]
[341502566,1730932241281,-151.0,0.00034828,7]
[341502567,1730932241290,-151.0,0.00034828,7]
[341502568,1730932241299,-151.0,0.00034828,7]
[341502569,1730932241308,-151.0,0.00034828,7]
[341502570,1730932241317,-155.539807,0.00034828,7]
[341502571,1730932241326,-151.0,0.00034828,7]
[341502572,1730932241335,-151.0,0.00034828,7]
[341502573,1730932241344,-4684.383306,0.00034828,7]
[341502574,1730932241356,-1146.683713,0.00034828,7]
[341502575,1730932241366,-1146.683713,0.00034828,7]
[341502576,1730932241378,-541.687758,0.00034828,7]
[341502577,1730932241392,-541.687758,0.00034828,7]
[341502578,1730932241403,-4684.383306,0.00034828,7]
[341502579,1730932241412,-1146.683713,0.00034828,7]
[341502580,1730932241423,-1146.683713,0.00034828,7]
[341502581,1730932241433,-541.687758,0.00034828,7]
[341502582,1730932241443,-541.687758,0.00034828,7]
[341502583,1730932241459,-164.338677,0.00034828,7]
[341502584,1730932241469,-164.338677,0.00034828,7]
[341502585,1730932241480,-164.338677,0.00034828,7]
[341502586,1730932241489,-151.0,0.00034828,7]
[341502587,1730932241498,-164.338677,0.00034828,7]
[341502588,1730932241507,-151.0,0.00034828,7]
[341502589,1730932241516,-199.177222,0.00034828,7]
[341502590,1730932241525,-151.0,0.00034828,7]
[341502591,1730932241535,-151.0,0.00034828,7]
[341502592,1730932241544,-413.83836,0.00034828,7]
[341502593,1730932241553,-413.83836,0.00034828,7]
[341502594,1730932241562,-413.83836,0.00034828,7]
[341502595,1730932241571,-413.83836,0.00034828,7]
[341502596,1730932241580,-151.0,0.00034828,7]
[341502597,1730932241589,-151.0,0.00034828,7]
[341502598,1730932241597,-151.0,0.00034828,7]
[341502599,1730932241606,-151.0,0.00034828,7]
[341502600,1730932241615,-151.0,0.00034828,7]
[341502601,1730932241625,-151.0,0.00034828,7]
[341502602,1730932241634,-266.051992,0.00034828,7]
[341502603,1730932241643,-151.0,0.00034828,7]
[341502604,1730932241653,-348.606272,0.00034828,7]
[341502605,1730932241664,-348.606272,0.00034828,7]
[341502606,1730932241674,-327.70970711,0.00034828,2]
[341502607,1730932241683,-327.70970711,0.00034828,2]
[341502608,1730932241693,-150.0,0.00034837,7]
[341502609,1730932241702,-500.0,0.00034838,2]
[341502610,1730932241711,-500.0,0.00034838,2]
[341502611,1730932241721,-1000.0,0.00034838,30]
[341502612,1730932241732,-151.0,0.00034838,7]
[341502613,1730932241743,-151.0,0.00034838,7]
[341502614,1730932241752,-151.0,0.00034838,7]
[341502615,1730932241761,-151.0,0.00034838,7]
[341502616,1730932241771,-216.372313,0.00034838,7]
[341502617,1730932241780,-216.372313,0.00034838,7]
[341502618,1730932241790,-203.491897,0.00034839,7]
[341502619,1730932241799,-151.0,0.00034839,7]
[341502620,1730932241809,-151.0,0.00034839,7]
[341502621,1730932241819,-151.0,0.00034839,7]
[341502622,1730932241828,-151.0,0.00034839,7]
[341502623,1730932241838,-151.0,0.00034839,7]
[341502624,1730932241847,-151.0,0.00034839,7]
[341502625,1730932241857,-151.0,0.00034839,7]
[341502626,1730932241866,-151.0,0.00034839,7]
[341502627,1730932241876,-151.0,0.00034839,7]
[341502628,1730932241885,-171.808995,0.00034839,7]
[341502629,1730932241895,-151.0,0.00034839,7]
[341502630,1730932241904,-151.0,0.00034839,7]
[341502631,1730932241913,-151.0,0.00034839,7]
[341502632,1730932241922,-151.0,0.00034839,7]
[341502633,1730932241931,-151.0,0.00034839,7]
[341502634,1730932241940,-151.0,0.00034839,7]
[341502635,1730932241950,-151.0,0.00034839,7]
[341502636,1730932241959,-151.0,0.00034839,7]
[341502637,1730932241968,-151.0,0.00034839,7]
[341502638,1730932241978,-151.0,0.00034839,7]
[341502639,1730932241987,-151.0,0.00034839,7]
[341502640,1730932241996,-257.388567,0.00034839,7]
[341502641,1730932242005,-257.388567,0.00034839,7]
[341502642,1730932242015,-257.388567,0.00034839,7]
[341502643,1730932242024,-257.388567,0.00034839,7]
[341502644,1730932242034,-257.388567,0.00034839,7]
[341502645,1730932242046,-257.388567,0.00034839,7]
[341502646,1730932242055,-151.0,0.00034839,7]
[341502647,1730932242065,-151.0,0.00034839,7]
[341502648,1730932242075,-151.0,0.00034839,7]
[341502649,1730932242084,-151.0,0.00034839,7]
[341502650,1730932242094,-151.0,0.00034839,7]
[341502651,1730932242103,-151.0,0.00034839,7]
[341502652,1730932242113,-151.0,0.00034839,7]
[341502653,1730932242122,-151.0,0.00034839,7]
[341502654,1730932242132,-151.0,0.00034839,7]
[341502655,1730932242142,-151.0,0.00034839,7]
[341502656,1730932242153,-151.0,0.00034839,7]
[341502657,1730932242164,-151.0,0.00034839,7]
[341502658,1730932242173,-151.0,0.00034839,7]
[341502659,1730932242183,-151.0,0.00034839,7]
[341502660,1730932242193,-151.0,0.00034839,7]
[341502661,1730932242203,-151.0,0.00034839,7]
[341502662,1730932242213,-151.0,0.00034839,7]
[341502663,1730932242223,-151.0,0.00034839,7]
[341502664,1730932242237,-151.0,0.00034839,7]
[341502665,1730932242246,-151.0,0.00034839,7]
[341502666,1730932242255,-151.0,0.00034839,7]
[341502667,1730932242265,-151.0,0.00034839,7]
[341502668,1730932242274,-151.0,0.00034839,7]
[341502669,1730932242283,-151.0,0.00034839,7]
[341502670,1730932242293,-151.0,0.00034839,7]
[341502671,1730932242302,-151.0,0.00034839,7]
[341502672,1730932242312,-151.0,0.00034839,7]
[341502673,1730932242321,-151.0,0.00034839,7]
[341502674,1730932242334,-231.021145,0.00034839,7]
[341502675,1730932242345,-151.0,0.00034839,7]
[341502676,1730932242354,-454.297626,0.00034839,7]
[341502677,1730932242363,-454.297626,0.00034839,7]
[341502678,1730932242372,-151.0,0.00034839,7]
[341502679,1730932242385,-151.0,0.00034839,7]
[341502680,1730932242395,-271.568934,0.00034839,7]
[341502681,1730932242404,-271.568934,0.00034839,7]
[341502682,1730932242413,-271.568934,0.00034839,7]
[341502683,1730932242423,-271.568934,0.00034839,7]
[341502684,1730932242432,-3000.0,0.00034839,2]
[341502685,1730932242442,-3000.0,0.00034839,2]
[341502686,1730932242451,-228.573863,0.00034839,2]
[341502687,1730932242461,-151.0,0.00034839,7]
[341502688,1730932242470,-151.0,0.00034839,7]
[341502689,1730932242482,-151.0,0.00034839,7]
[341502690,1730932242491,-151.0,0.00034839,7]
[341502691,1730932242501,-151.0,0.00034839,7]
[341502692,1730932242510,-151.0,0.00034839,7]
[341502693,1730932242519,-151.0,0.00034839,7]
[341502694,1730932242529,-151.0,0.00034839,7]
[341502695,1730932242540,-151.0,0.00034839,7]
[341502696,1730932242548,-151.0,0.00034839,7]
[341502697,1730932242559,-151.0,0.00034839,7]
[341502698,1730932242570,-214.821417,0.00034839,7]
[341502699,1730932242579,-151.0,0.00034849,7]
[341502700,1730932242589,-151.0,0.00034849,7]
[341502701,1730932242598,-151.0,0.00034849,7]
[341502702,1730932242607,-217.6171,0.00034849,7]
[341502703,1730932242616,-217.6171,0.00034849,7]
[341502704,1730932242625,-151.0,0.00034849,7]
[341502705,1730932242634,-151.0,0.00034849,7]
[341502706,1730932242644,-151.0,0.00034849,7]
[341502707,1730932242653,-151.0,0.00034849,7]
[341502708,1730932242662,-169.234662,0.00034849,7]
[341502709,1730932242866,-169.234662,0.00034849,7]
[341502710,1730932242882,-169.234662,0.00034849,7]
[341502711,1730932242892,-169.234662,0.00034849,7]
[341502713,1730932242901,-169.234662,0.00034849,7]
[341502715,1730932242910,-169.234662,0.00034849,7]
[341502717,1730932242920,-151.0,0.00034849,7]
[341502719,1730932242929,-151.0,0.00034849,7]
[341502721,1730932242939,-151.0,0.00034849,7]
[341502723,1730932242948,-151.0,0.00034849,7]
[341502725,1730932242957,-151.0,0.00034849,7]
[341502727,1730932242967,-151.0,0.00034849,7]
[341502729,1730932242977,-807.80338884,0.00034849,120]
[341502730,1730932242987,-150.0,0.0003485,2]
[341502731,1730932242997,-150.0,0.00034854,2]
[341502732,1730932243007,-3367.9291156,0.0003486,2]
[341502733,1730932243016,-710.7266773,0.00034864,2]
[341502734,1730932243026,-150.0,0.00034866,2]
[341502735,1730932243036,-150.0,0.00034866,2]
[341502736,1730932243046,-150.0,0.00034868,2]
[341502737,1730932243057,-150.0,0.00034884,2]
[341502738,1730932243067,-1559.77367671,0.00034885,120]
[341502739,1730932243076,-150.0,0.00034888,2]
[341502740,1730932243086,-150.0,0.0003489,2]
[341502741,1730932243094,-303.42927115,0.0003489,2]
[341502742,1730932243104,-150.0,0.00034893,2]
[341502743,1730932243114,-150.0,0.00034896,2]
[341502744,1730932243124,-1100.0,0.000349,12]
[341502745,1730932243134,-150.0,0.0003491,2]
[341502746,1730932243144,-150.0,0.00034921,2]
[341502747,1730932243153,-150.0,0.00034927,2]
[341502748,1730932243163,-500.0,0.0003494,60]
[341502749,1730932243172,-1100.0,0.0003494,60]
[341502750,1730932243182,-150.0,0.0003494,2]
[341502751,1730932243191,-150.0,0.00034948,2]
[341502752,1730932243200,-150.0,0.00034951,2]
[341502753,1730932243210,-150.0,0.00034955,2]
[341502754,1730932243220,-150.0,0.00034955,2]
[341502755,1730932243231,-908.0596175,0.0003499,2]
[341502756,1730932243242,-5328.7097239,0.0003499,2]
[341502757,1730932243257,-152.0540165,0.0003499,2]
[341502758,1730932243269,-731.65,0.00034998,2]
[341502759,1730932243280,-481.74852349,0.00034999,2]
[341502760,1730932243291,-900.0,0.00035,7]
[341502761,1730932243301,-900.0,0.00035,36]
[341502762,1730932243310,-462.79410776,0.00035,2]
[341502763,1730932243321,-17566.59711078,0.00035,2]
[341502764,1730932243330,-250.0,0.00035,10]
[341502765,1730932243340,-224.99675998,0.00035,30]
[341502766,1730932243354,-150.0,0.00035,2]
[341502767,1730932243365,-7592.4,0.00035,100]
[341502768,1730932243374,-398.0,0.00035,20]
[341502769,1730932243388,-2286.0,0.00035,3]
[341502770,1730932243397,-196.0,0.00035,20]
[341502771,1730932243407,-1899.95151701,0.00035,2]
[341502772,1730932243416,-600.0,0.00035,2]
[341502773,1730932243432,-151.0,0.00035,7]
[341502774,1730932243447,-151.0,0.00035,7]
[341502775,1730932243458,-151.0,0.00035,7]
[341502776,1730932243467,-151.0,0.00035,7]
[341502777,1730932243477,-611.299316,0.00035,7]
[341502778,1730932243487,-151.0,0.00035,7]
[341502779,1730932243496,-611.299316,0.00035,7]
[341502780,1730932243506,-151.0,0.00035,7]
[341502781,1730932243515,-151.0,0.00035,7]
[341502782,1730932243524,-151.0,0.00035,7]
[341502783,1730932243534,-151.0,0.00035,7]
[341502784,1730932243543,-151.0,0.00035,7]
[341502785,1730932243553,-151.0,0.00035,7]
[341502786,1730932243562,-151.0,0.00035,7]
[341502787,1730932243572,-4684.383306,0.00035,7]
[341502788,1730932243581,-1146.683713,0.00035,7]
[341502789,1730932243591,-541.687758,0.00035,7]
[341502790,1730932243600,-4684.383306,0.00035,7]
[341502791,1730932243609,-1146.683713,0.00035,7]
[341502792,1730932243619,-541.687758,0.00035,7]
[341502793,1730932243629,-164.338677,0.00035,7]
[341502794,1730932243638,-164.338677,0.00035,7]
[341502795,1730932243648,-151.0,0.00035,7]
[341502796,1730932243657,-413.83836,0.00035,7]
[341502797,1730932243667,-413.83836,0.00035,7]
[341502798,1730932243676,-151.0,0.00035,7]
[341502799,1730932243685,-151.0,0.00035,7]
[341502800,1730932243695,-151.0,0.00035,7]
[341502801,1730932243704,-151.0,0.00035,7]
[341502802,1730932243714,-151.0,0.00035,7]
[341502803,1730932243723,-319.033336,0.00035,7]
[341502804,1730932243735,-319.033336,0.00035,7]
[341502805,1730932243744,-159.301892,0.00035,7]
[341502806,1730932243753,-151.0,0.00035,7]
[341502807,1730932243763,-348.606272,0.00035,7]
[341502808,1730932243772,-348.606272,0.00035,7]
[341502809,1730932243782,-151.0,0.00035,7]
[341502810,1730932243791,-585.196316,0.00035,7]
[341502811,1730932243800,-585.196316,0.00035,7]
[341502812,1730932243810,-283.29,0.00035013,120]
[341502813,1730932243819,-151.0,0.00035014,120]
[341502814,1730932243829,-500.0,0.00035112,3]
[341502815,1730932243839,-806.14,0.00035148,2]
[341502816,1730932243848,-211.0,0.0003523,2]
[341502817,1730932243858,-1015.965331,0.0003536,14]
[341502818,1730932243867,-1000.0,0.0003538,14]
[341502819,1730932243877,-500.0,0.00035386,4]
[341502820,1730932243886,-22650.15507492,0.00035394,2]
[341502821,1730932243896,-122345.77038507,0.00035394,2]
[341502822,1730932243907,-3326.94788029,0.00035394,2]
[341502823,1730932243917,-346.29149774,0.00035394,2]
[341502824,1730932243927,-200.0,0.00035396,2]
[341502825,1730932243936,-624.69523945,0.00035397,2]
[341502826,1730932243946,-200.0,0.00035397,2]
[341502827,1730932243956,-4013.18951343,0.00035397,2]
[341502828,1730932243966,-742.68621753,0.00035399,2]
[341502829,1730932243975,-18288.44681001,0.000354,2]
[341502830,1730932243986,-225.7,0.000354,120]
[341502831,1730932243995,-1000.0,0.000354,14]
[341502832,1730932244005,-2447.10593848,0.00035401,2]
[341502833,1730932244015,-267.77498189,0.00035401,2]
[341502834,1730932244025,-18288.44681001,0.00035401,2]
[341502835,1730932244036,-200.0,0.00035402,2]
[341502836,1730932244046,-3326.94788029,0.00035402,2]
[341502837,1730932244056,-2451.9020583,0.00035403,2]
[341502838,1730932244066,-751441.590649,0.00035404,2]
[341502839,1730932244075,-22650.15507492,0.00035405,2]
[341502840,1730932244085,-200.0,0.00035405,2]
[341502841,1730932244094,-6799.44585233,0.00035405,2]
[341502844,1730932245705,-673.07,0.00032781,2]
[341502845,1730932245750,-12936.93,0.00032781,2]
[341502846,1730932245761,-151.0,0.00034808,7]
[341502847,1730932245772,-744642.14479667,0.00035405,2]
[341502848,1730932245782,-152.0,0.00035405,3]
[341502849,1730932245792,-3543.28588559,0.00035406,2]
[341502850,1730932245802,-200.0,0.00035406,2]
[341502851,1730932245811,-751441.590649,0.00035406,2]
[341502852,1730932245821,-742.68621753,0.00035408,2]
[341502853,1730932245831,-3326.94788029,0.00035408,2]
[341502854,1730932245841,-2362.1905904,0.00035409,2]
[341502855,1730932245851,-254.0222802,0.00035409,2]
[341502856,1730932245861,-2447.10593848,0.0003541,2]
[341502857,1730932245870,-22650.15507492,0.00035412,2]
[341502859,1730932245880,-200.0,0.00035412,2]
[341502860,1730932245890,-538.42552181,0.00035413,2]
[341502861,1730932245900,-38318.88290944,0.00035413,2]
[341502862,1730932245911,-38318.88290944,0.00035413,2]
[341502863,1730932245920,-2447.10593848,0.00035414,2]
[341502864,1730932245930,-624.69523945,0.00035418,2]
[341502865,1730932245940,-2451.9020583,0.00035418,2]
[341502866,1730932245950,-1000.0,0.0003542,14]
[341502867,1730932245959,-2451.9020583,0.0003542,2]
[341502868,1730932245969,-254.0222802,0.00035421,2]
[341502869,1730932245979,-4013.18951343,0.00035423,2]
[341502871,1730932245988,-346.29149774,0.00035423,2]
[341502872,1730932245998,-742.68621753,0.00035425,2]
[341502873,1730932246008,-346.29149774,0.00035426,2]
[341502874,1730932246018,-624.69523945,0.00035426,2]
[341502875,1730932246027,-22650.15507492,0.00035426,2]
[341502876,1730932246037,-4013.18951343,0.00035427,2]
[341502877,1730932246047,-538.42552181,0.00035429,2]
[341502878,1730932246056,-18288.44681001,0.00035431,2]
[341502879,1730932246067,-254.0222802,0.00035431,2]
[341502880,1730932246076,-267.77498189,0.00035432,2]
[341502881,1730932246086,-4013.18951343,0.00035432,2]
[341502882,1730932246095,-247.10460324,0.00035432,2]
[341502883,1730932246105,-820.12377879,0.00035433,2]
[341502884,1730932246114,-200.0,0.00035434,2]
[341502885,1730932246124,-267.77498189,0.00035435,2]
[341502886,1730932246133,-247.10460324,0.00035435,2]
[341502887,1730932246143,-3543.28588559,0.00035436,2]
[341502888,1730932246153,-18288.44681001,0.00035438,2]
[341502889,1730932246162,-538.42552181,0.00035438,2]
[341502890,1730932246172,-820.12377879,0.00035439,2]
[341502891,1730932246181,-2447.10593848,0.0003544,2]
[341502892,1730932246191,-122345.77038507,0.0003544,2]
[341502893,1730932246200,-3326.94788029,0.0003544,2]
[341502894,1730932246210,-1000.0,0.0003544,14]
[341502895,1730932246220,-200.0,0.00035441,2]
[341502896,1730932246230,-742.68621753,0.00035442,2]
[341502897,1730932246247,-254.0222802,0.00035443,2]
[341502898,1730932246256,-2362.1905904,0.00035444,2]
[341502899,1730932246266,-6192.369901,0.00035445,2]
[341502900,1730932246276,-624.69523945,0.00035446,2]
[341502901,1730932246285,-2451.9020583,0.00035446,2]
[341502902,1730932246294,-2447.10593848,0.00035447,2]
[341502903,1730932246305,-2362.1905904,0.00035448,2]
[341502904,1730932246314,-538.42552181,0.00035449,2]
[341502905,1730932246324,-538.42552181,0.00035449,2]
[341502906,1730932246333,-38318.88290944,0.00035449,2]
[341502907,1730932246343,-200.0,0.00035452,2]
[341502908,1730932246352,-151.0,0.00035452,7]
[341502909,1730932246361,-151.0,0.00035452,7]
[341502910,1730932246370,-151.0,0.00035452,7]
[341502911,1730932246382,-217.6171,0.00035452,7]
[341502912,1730932246392,-217.6171,0.00035452,7]
[341502913,1730932246402,-151.0,0.00035452,7]
[341502914,1730932246411,-158.892899,0.00035452,7]
[341502915,1730932246421,-2374.513,0.00035452,42]
[341502916,1730932246431,-346.29149774,0.00035452,2]
[341502917,1730932246440,-46465.9381896,0.00035455,2]
[341502918,1730932246516,-6999.46029323,0.00035455,2]
[341502921,1730932247862,-151.0,0.00034808,7]
[341502922,1730932247872,-133.87142596,0.00035455,2]
[341502923,1730932247883,-682.22999238,0.00035455,2]
[341502924,1730932247895,-68064.2704839,0.00035455,2]
[341502925,1730932247906,-346.29149774,0.00035456,2]
[341502926,1730932247916,-324894.91054096,0.00035457,2]
[341502927,1730932247929,-426546.68010804,0.00035457,2]
[341502928,1730932247940,-538.42552181,0.00035458,2]
[341502929,1730932247950,-3543.28588559,0.00035458,2]
[341502930,1730932247960,-6192.369901,0.00035458,2]
[341502931,1730932247970,-247.10460324,0.0003546,2]
[341502932,1730932247981,-151.0,0.0003546,7]
[341502933,1730932247991,-169.234662,0.0003546,7]
[341502934,1730932248000,-169.234662,0.0003546,7]
[341502935,1730932248010,-151.0,0.0003546,7]
[341502936,1730932248020,-1000.0,0.0003546,14]
[341502937,1730932248030,-820.12377879,0.00035461,2]
[341502938,1730932248039,-624.69523945,0.00035462,2]
[341502939,1730932248049,-4013.18951343,0.00035462,2]
[341502940,1730932248059,-200.0,0.00035462,2]
[341502941,1730932248069,-6192.369901,0.00035463,2]
[341502942,1730932248079,-6192.369901,0.00035464,2]
[341502943,1730932248089,-254.0222802,0.00035464,2]
[341502944,1730932248099,-22650.15507492,0.00035465,2]
[341502945,1730932248109,-122345.77038507,0.00035465,2]
[341502946,1730932248119,-247.10460324,0.00035466,2]
[341502947,1730932248129,-2451.9020583,0.00035467,2]
[341502948,1730932248139,-751441.590649,0.00035467,2]
[341502949,1730932248149,-820.12377879,0.00035468,2]
[341502950,1730932248159,-6635.09943758,0.0003547,15]
[341502951,1730932248169,-247.10460324,0.00035471,2]
[341502952,1730932248179,-2451.9020583,0.00035474,2]
[341502953,1730932248188,-820.12377879,0.00035475,2]
[341502954,1730932248198,-3543.28588559,0.00035475,2]
[341502955,1730932248208,-943.68641061,0.00035478,2]
[341502956,1730932248217,-2000.0,0.00035478,4]
[341502957,1730932248227,-151.0,0.00035478,7]
[341502958,1730932248237,-151.0,0.00035478,7]
[341502959,1730932248247,-2040.750861,0.00035478,7]
[341502960,1730932248257,-2040.750861,0.00035478,7]
[341502961,1730932248266,-151.0,0.00035478,7]
[341502962,1730932248276,-151.0,0.00035478,7]
[341502963,1730932248285,-157.293132,0.00035478,7]
[341502964,1730932248294,-151.0,0.00035478,7]
[341502965,1730932248303,-151.0,0.00035478,7]
[341502966,1730932248313,-216.372313,0.00035478,7]
[341502967,1730932248323,-216.372313,0.00035478,7]
[341502968,1730932248333,-3326.94788029,0.00035479,2]
[341502969,1730932248342,-247.10460324,0.00035479,2]
[341502970,1730932248352,-38318.88290944,0.00035479,2]
[341502971,1730932248361,-200.0,0.00035479,2]
[341502972,1730932248371,-34183.60386774,0.0003548,2]
[341502973,1730932249940,-150.0,0.00034579,2]
[341502974,1730932249949,-150.0,0.00034604,2]
[341502975,1730932249958,-150.0,0.00034613,2]
[341502976,1730932249967,-150.0,0.00034642,2]
[341502977,1730932249977,-150.0,0.00034645,2]
[341502978,1730932249986,-150.0,0.00034685,2]
[341502979,1730932249996,-1084.87198229,0.00034697,5]
[341502980,1730932250005,-150.0,0.00034713,2]
[341502981,1730932250014,-150.0,0.00034786,2]
[341502982,1730932250023,-150.0,0.00034788,2]
[341502983,1730932250032,-150.0,0.00034802,2]
[341502984,1730932250041,-151.0,0.00034808,7]
[341502985,1730932250049,-151.0,0.00034838,7]
[341502986,1730932250059,-150.0,0.00035134,2]
[341502987,1730932250068,-150.0,0.00035314,2]
[341502988,1730932250077,-150.0,0.00035378,2]
[341502989,1730932250085,-151.0,0.00035478,7]
[341502990,1730932250094,-88162.16651733,0.0003548,2]
[341502991,1730932250103,-200.0,0.0003548,2]
[341502992,1730932250112,-200.0,0.0003548,2]
[341502993,1730932250122,-1000.0,0.0003548,14]
[341502994,1730932250131,-13006.32016517,0.00035481,2]
[341502995,1730932250160,-150.0,0.00035161,2]
[341502996,1730932250168,-150.0,0.00035184,2]
[341502997,1730932250177,-150.0,0.00035202,2]
[341502998,1730932250186,-150.0,0.00035259,2]
[341502999,1730932250195,-150.0,0.0003527,2]
[341503000,1730932250204,-5282.12664484,0.00035481,2]
[341503001,1730932250213,-820.12377879,0.00035481,2]
[341503002,1730932250222,-22650.15507492,0.00035482,2]
[341503003,1730932250231,-122345.77038507,0.00035483,2]
[341503004,1730932250245,-38318.88290944,0.00035484,2]
[341503005,1730932250254,-346.29149774,0.00035485,2]
[341503006,1730932250263,-267.77498189,0.00035485,2]
[341503007,1730932250271,-38318.88290944,0.00035486,2]
[341503008,1730932250281,-6192.369901,0.00035486,2]
[341503009,1730932250290,-624.69523945,0.00035486,2]
[341503010,1730932250299,-500.0,0.00035488,60]
[341503011,1730932250307,-1100.0,0.00035488,60]
[341503012,1730932250316,-1800.0,0.00035488,60]
[341503013,1730932250326,-6192.369901,0.00035489,2]
[341503014,1730932250335,-267.77498189,0.00035489,2]
[341503015,1730932250344,-254.0222802,0.0003549,2]
[341503016,1730932250353,-742.68621753,0.0003549,2]
[341503017,1730932250362,-267.77498189,0.00035491,2]
[341503018,1730932250372,-200.0,0.00035492,2]
[341503019,1730932250383,-18288.44681001,0.00035493,2]
[341503020,1730932250394,-4013.18951343,0.00035493,2]
[341503021,1730932250403,-2447.10593848,0.00035494,2]
[341503022,1730932250412,-200.0,0.00035495,2]
[341503023,1730932250422,-742.68621753,0.00035496,2]
[341503024,1730932250432,-751441.590649,0.00035497,2]
[341503025,1730932250441,-2174.7091049,0.00035497,5]
[341503026,1730932250450,-3326.94788029,0.00035498,2]
[341503027,1730932250460,-2000.0,0.000355,2]
[341503028,1730932250470,-1000.0,0.000355,14]
[341503029,1730932250479,-510.99822,0.000355,2]
[341503030,1730932250490,-1261.26810607,0.00035518,2]
[341503031,1730932250499,-1000.0,0.0003552,14]
[341503032,1730932250507,-150.0,0.00035537,60]
[341503033,1730932250516,-160.73546006,0.00035537,60]